Cogmind - Beta 16 @@@ ROGUE MODE // 2026.01.06 @ 22:01:28 Player: PE-P51 Result: Destroyed by S-10 Pest with Light Assault Rifle Performance ------------- Evolutions (0) 0 Regions Visited (2) 400 Robots Destroyed (30) 150 Value Destroyed (713) 713 Prototype IDs (1) 20 Alien Tech Used (0) 0 Bonus (0) 0 TOTAL SCORE: 1283 Bonus ------- None Cogmind --------- Core Integrity 0/250 Matter 290/300 Energy 50/100 System Corruption 0% Temperature Cool (72) Movement Core (100) Ox1 Location -10/Mines Parts ------- > --- POWER (1) -------- (None) > --- PROPULSION (2) --- (None) > --- UTILITY (2) ------ (None) > --- WEAPON (2) ------- Particle Cannon > --- INVENTORY (5) ---- Compact Wheel Large Storage Unit Cargo Storage Unit Peak State ------------ > --- POWER ------------ Improved Ion Engine > --- PROPULSION ------- Light Treads Light Treads > --- UTILITY ---------- Improved Heat Sink Huge Storage Unit > --- WEAPON ----------- Advanced Beam Cannon Advanced Beam Cannon > --- INVENTORY -------- Compact Wheel Large Storage Unit Large Storage Unit Cargo Storage Unit Light Armor Plating Medium Laser Particle Cannon Particle Cannon Light Assault Rifle Grenade Launcher Datajack [Rating: 15] Favorites ----------- Power Ion Engine Engine Ion Engine Propulsion Aluminum Leg Treads Light Treads Leg Aluminum Leg Utility Light Armor Plating Device Improved Heat Sink Storage Large Storage Unit Protection Light Armor Plating Weapon Advanced Beam Cannon Energy Gun Medium Laser Energy Cannon Advanced Beam Cannon Ballistic Gun Light Assault Rifle Launcher Grenade Launcher Build | -11 -10 -10 ------- Run | Yrd Mat Min Slots Evolved . | . . . Power . | . . . Propulsion . | . . . Utility . | . . . Weapon . | . . . Parts Attached 18 | . 14 4 Power 3 | . 2 1 Engine 3 | . 2 1 Core . | . . . Reactor . | . . . Propulsion 5 | . 4 1 Treads 3 | . 2 1 Leg 2 | . 2 . Wheel . | . . . Hover . | . . . Flight . | . . . Utility 6 | . 5 1 Device 1 | . . 1 Storage 3 | . 3 . Processor . | . . . Hackware . | . . . Protection 2 | . 2 . Artifact . | . . . Weapon 4 | . 3 1 Energy Gun . | . . . Energy Cannon 3 | . 2 1 Ballistic Gun . | . . . Ballistic Cannon . | . . . Launcher 1 | . 1 . Special Weapon . | . . . Impact Weapon . | . . . Slashing Weapon . | . . . Piercing Weapon . | . . . Special Melee Weapon . | . . . Unidentified Prototypes 1 | . 1 . Parts Lost 4 | . 2 2 Power 2 | . 1 1 Propulsion 1 | . 1 . Utility 1 | . . 1 Weapon . | . . . Highest Loss Streak 2 | . 2 2 To Critical Strikes . | . . . Average Backups 9 | . 9 7 Power . | . . . Propulsion 2 | . 2 1 Utility 2 | . 2 3 Weapon 3 | . 3 3 Tool/Special . | . . . Unused Backups 7 | . 3 4 Power . | . . . Propulsion 1 | . 1 . Utility 2 | . 1 1 Weapon 3 | . 1 2 Tool/Special 1 | . . 1 Average Slot Usage (%) 85 | . 95 49 Engine 10 | . 13 1 Treads 10 | . 9 15 Leg 14 | . 18 . Device 1 | . . 6 Storage 12 | . 14 7 Protection 9 | . 11 . Energy Gun 3 | . 5 . Energy Cannon 16 | . 17 16 Ballistic Gun 2 | . 2 . Launcher 1 | . 2 . Peak Build Rating 15 | . 12 15 Average Rating 9 | . 9 7 On Entrance 8 | 6 6 12 Avg Prop Armor Cover (%) . | . . . Naked Turns 179 | . . 179 Heaviest Build 96 | 13 94 96 Greatest Support 40 | 20 40 40 Greatest Overweight (x) 9 | . 9 2 Average Overweight (x) 1 | . 1 . Largest Inventory Capacity 25 | . 25 25 Average Capacity 17 | . 17 16 Most Carried 14 | . 14 13 Average Carried 10 | . 10 8 Final Capacity 25 | 8 25 5 Final Carried 12 | 6 12 4 Class Distribution -------------------- 100% | Mutant Dominant Class ---------------- Mutant | -10/Materials Mutant | -10/Mines Resources | -11 -10 -10 ----------- Run | Yrd Mat Min Matter Collected 551 | 200 321 30 Remotely . | . . . Salvage Created 994 | . 616 378 Parts 48 | . 29 19 Haulers Intercepted 2 | . 2 . Recyclers Shooed 2 | . 1 1 Parts Field Recycled . | . . . Retrieved Matter . | . . . Parts Self-Destructed . | . . . Prevented . | . . . Parts Restored . | . . . Kills | -11 -10 -10 ------- Run | Yrd Mat Min Combat Hostiles Destroyed 19 | . 14 5 Guns 3 | . 3 . Cannons 9 | . 4 5 AOE 7 | . 7 . Classes Destroyed 9 | . 6 3 Worker 2 | . 2 . Tunneler 1 | . . 1 Hauler 2 | . 2 . Recycler 2 | . . 2 Operator 3 | . 3 . Watcher 1 | . 1 . Swarmer 4 | . 3 1 Grunt 13 | . 11 2 Sentry 2 | . . 2 Best Kill Streak 9 | . 9 3 Combat Bots Only 5 | . 5 2 Max Kills in Single Turn 2 | . 2 1 Gunslinging . | . . . Exploded 1 | . 1 . Melee . | . . . Uniques/NPCs Destroyed . | . . . Combat | -11 -10 -10 -------- Run | Yrd Mat Min Hostile Shots Fired 117 | . 71 46 Missed 31 | . 21 10 Hits 86 | . 50 36 Projectile 86 | . 50 36 Damage Taken 1028 | . 576 452 Core 255 | . 91 164 Absorbed by Shields . | . . . Core Remaining (%) 100 | 100 . . Volleys Fired 70 | . 50 20 Largest 2 | . 2 2 Hottest 136 | . 136 136 Shots Fired 117 | . 82 35 Gun 40 | . 40 . Cannon 67 | . 32 35 Launcher 10 | . 10 . Special . | . . . Kinetic 17 | . 17 . Thermal 90 | . 55 35 Explosive 10 | . 10 . Electromagnetic . | . . . Robot Hit Streak 13 | . 13 7 Robot Miss Streak 4 | . 3 4 Penetration Max . | . . . Secondary Targets 1 | . 1 . Max Gunslinging Chain 1 | . 1 . Shots Hit Robots 75 | . 54 21 Core Hits 42 | . 34 8 Critical Kills 1 | . . 1 Critical Parts Destroyed . | . . . Critical Strikes 4 | . 3 1 Burn 3 | . 3 . Meltdown 1 | . . 1 Melee Attacks . | . . . Impact . | . . . Slashing . | . . . Piercing . | . . . Sneak Attacks . | . . . Combat Hostiles . | . . . Follow-up Attacks . | . . . Damage Inflicted 1832 | . 1399 433 Guns 289 | . 289 . Cannons 882 | . 451 431 Explosions 619 | . 619 . Melee . | . . . Ramming 42 | . 40 2 Kinetic 91 | . 91 . Thermal 1080 | . 649 431 Explosive 619 | . 619 . Electromagnetic . | . . . Impact . | . . . Slashing . | . . . Piercing . | . . . Highest Corruption . | . . . Average Corruption . | . . . Corruption Purged . | . . . Corruption Blocked . | . . . Overload Shots . | . . . Overflow Damage 27 | . 27 . Projectiles 16 | . 16 . Explosions 11 | . 11 . Melee . | . . . Knockbacks . | . . . Impact . | . . . Kinetic . | . . . Secondary . | . . . Self-Inflicted Damage . | . . . Shots . | . . . Rammed 4 | . 3 1 Targets Rammed 6 | . 5 1 Kicked 2 | . 2 . Crushed . | . . . Highest Temperature 420 | . 420 204 Average Temperature 91 | . 92 89 Received Heat Transfer 492 | . 279 213 Effects 1 | . 1 . Shutdowns 1 | . 1 . Siege Activations . | . . . Martial Activations . | . . . Shielding Activations . | . . . Robots Disrupted . | . . . Combat Hostiles . | . . . Robots Corrupted . | . . . Combat Hostiles . | . . . Parts Fried . | . . . Impact Corruptions . | . . . Robots Melted 2 | . 1 1 Combat Hostiles . | . . . Parts Melted 8 | . 6 2 Heat Transferred 2405 | . 1628 777 Parts Sabotaged . | . . . Parts Stolen . | . . . Parts Stripped . | . . . Power Chain Reactions . | . . . Alert | -11 -10 -10 ------- Run | Yrd Mat Min Maximum Alert Level . | . . . Low Security (%) 100 | . 100 100 Level 1 . | . . . Level 2 . | . . . Level 3 . | . . . Level 4 . | . . . Level 5 . | . . . High Security . | . . . Max Security . | . . . Peak Influence 165 | . 165 50 Initial . | . . . Average 41 | . 49 12 Influence Increases 609 | . 454 155 Destroy 0b10 Robot/C 380 | . 280 100 Destroy 0b10 Robot/NC 55 | . 40 15 Destroy Leader 76 | . 66 10 Successful Hack 13 | . 13 . Destroy Structure 40 | . 40 . Partial Spotted 15 | . . 15 Lose Combat Pursuer 30 | . 15 15 Influence Decreases 575 | . 454 121 Time Decay 555 | . 434 121 Lost Part 20 | . 20 . Squads Dispatched 2 | . 2 . Investigation . | . . . Extermination . | . . . Reinforcement 2 | . 2 . Assault . | . . . Garrison . | . . . Intercept . | . . . Searches Triggered . | . . . Construction Impeded . | . . . Haulers Reinforced . | . . . Active Scanning Responses . | . . . Cargo Convoy Interrupts . | . . . Stealth | -11 -10 -10 --------- Run | Yrd Mat Min Distress Signals 3 | . 2 1 Communications Jammed . | . . . Distress Signals . | . . . Times Spotted 39 | . 30 9 Peak Tracking Total 7 | . 7 4 Tactical Retreats 2 | . 1 1 Traps | -11 -10 -10 ------- Run | Yrd Mat Min Traps Triggered 6 | . 6 . Indirectly . | . . . Trap Hack Attempts . | . . . Triggered . | . . . Disarmed . | . . . Reprogrammed . | . . . Reused . | . . . Traps Extracted . | . . . Installed . | . . . Triggered . | . . . Machines | -11 -10 -10 ---------- Run | Yrd Mat Min Machines Disabled 3 | . 3 . Max in Single Turn 2 | . 2 . Machines Repaired . | . . . Machines Dismantled . | . . . Machines Sabotaged . | . . . Overloaded Fab Kills . | . . . Hacking | -11 -10 -10 --------- Run | Yrd Mat Min Machines Accessed 7 | . 7 . Terminals 6 | . 6 . Fabricators . | . . . Repair Stations 1 | . 1 . Recycling Units . | . . . Scanalyzers . | . . . Garrison Access . | . . . Total Hacks 21 | . 21 . Successful 13 | . 13 . Failed 8 | . 8 . Catastrophic . | . . . Database Lockouts . | . . . Manual 15 | . 15 . Terminals 18 | . 18 . Fabricators . | . . . Repair Stations 3 | . 3 . Recycling Units . | . . . Scanalyzers . | . . . Garrison Access . | . . . Terminal Hacks 3 | . 3 . Recycling Unit Index 1 | . 1 . Alert Level 2 | . 2 . Fabricator Hacks . | . . . Repair Station Hacks . | . . . Recycling Unit Hacks . | . . . Scanalyzer . | . . . Garrison Access Hacks . | . . . Unauthorized Hacks 10 | . 10 . Terminals 10 | . 10 . Botnet 5 | . 5 . Skim 5 | . 5 . Fabricators . | . . . Repair Stations . | . . . Recycling Units . | . . . Scanalyzers . | . . . Garrison Access . | . . . Data Cores Recovered . | . . . Used . | . . . Hacking Detections 5 | . 5 . Full Trace Events . | . . . Feedback Events . | . . . Feedback Blocked . | . . . Robot Schematics Acquired . | . . . Robots Built . | . . . Authchips . | . . . Time . | . . . Total Robot Build Rating . | . . . Part Schematics Acquired . | . . . Parts Built . | . . . Authchips . | . . . Time . | . . . Total Part Build Rating . | . . . Part Studies Acquired . | . . . Parts Repaired . | . . . Time . | . . . Parts Recycled . | . . . Recycled Matter . | . . . Retrieved Matter . | . . . Retrieved Components . | . . . Parts Scanalyzed . | . . . Part Schematics Acquired . | . . . Parts Damaged . | . . . Bothacking | -11 -10 -10 ------------ Run | Yrd Mat Min Used RIF Installer . | . . . Robots Hacked . | . . . Non-combat . | . . . Combat . | . . . Robot Hacks Applied . | . . . Relay Couplers Released . | . . . Fabnet Peak Effective % . | . . . Robots Rewired . | . . . Allies Hacked . | . . . Hacks Repelled . | . . . Allies | -11 -10 -10 -------- Run | Yrd Mat Min Total Allies . | . . . Largest Group . | . . . Highest-Rated Group . | . . . Highest-Rated Ally . | . . . Total Orders . | . . . Ally Attacks . | . . . Total Damage . | . . . Kills . | . . . Allies Corrupted . | . . . Allies Melted . | . . . Intel | -11 -10 -10 ------- Run | Yrd Mat Min Active Infowar (turns) . | . . . Robot Analysis Total . | . . . Derelict Logs Recovered . | . . . Drone Launches . | . . . Drone Recoveries . | . . . Exploration | -11 -10 -10 ------------- Run | Yrd Mat Min Turns Passed 2022 | . 1593 429 Spaces Moved 850 | 1 641 208 Core 161 | . 8 153 Treads 219 | . 164 55 Legs 470 | 1 469 . Wheels . | . . . Hover . | . . . Flight . | . . . Fastest Speed 50 | 120 120 50 Average Speed 191 | 120 213 121 Slowest Speed 500 | 120 500 320 Overloaded Moves . | . . . Propulsion Burnouts . | . . . Robots Hopped . | . . . Potential Cave-ins . | . . . Cave-ins Triggered . | . . . Exploration Rate (%) 40 | 2 95 23 Regions Visited 2 Branch Regions 1 Pre-discovered Areas . | . . . Known Exits Taken . | . . . Unknown Exits Taken 2 | 1 1 . Scrap Searched . | . . . Spaces Dug . | . . . Terrain Destroyed 45 | . 45 . Melee . | . . . Projectile . | . . . AOE 45 | . 45 . Terrain Rammed . | . . . Walls Destroyed . | . . . Machines Disabled . | . . . Actions | -11 -10 -10 --------- Run | Yrd Mat Min Total 1118 | . 771 347 Wait 159 | . 45 114 Move 848 | . 640 208 Hop . | . . . Pick Up 6 | . 6 . Fast Attach 13 | . 11 2 Attach 3 | . 2 1 Detach 1 | . 1 . Swap 9 | . 8 1 Drop 3 | . 3 . Fire 70 | . 50 20 Melee . | . . . Ram . | . . . Kick 2 | . 2 . Crush 4 | . 3 1 Escape Stasis . | . . . Rewire . | . . . Trap . | . . . Miscellaneous . | . . . Route ------- -11/Scrapyard -10/Materials (discovered 5 exits: [*Mat x3] / [*Min x2]) -10/Mines History --------- Turn | Location | Event 1 | -11/Scrapyard | Discovered new exit (range 0) 1 | -11/Scrapyard | Entered Materials 180 | -10/Materials | Discovered new exit (range 5) 298 | -10/Materials | Discovered new exit (range 6) 321 | -10/Materials | Build established: Mutant 506 | -10/Materials | Discovered new exit (range 15) 590 | -10/Materials | Discovered new exit (range 16) 1012 | -10/Materials | Loaded intel: 1 repair station location 1220 | -10/Materials | Discovered new exit (range 4) 1594 | -10/Materials | Entered Mines 1605 | -10/Mines | Met a Derelict bent on vengeance 1611 | -10/Mines | Core integrity fell below 50% 1802 | -10/Mines | Assembled infested the area 1835 | -10/Mines | Released all parts (7) 2002 | -10/Mines | Core integrity fell below 20% 2023 | -10/Mines | Destroyed by S-10 Pest with Light Assault Rifle Last Messages --------------- 01695_ R-06 Scavenger collects Sml. Storage Unit. 01698_ R-06 Scavenger collects Tractor Beam. 01702_ R-06 Scavenger collects Particle Gun. 01737_ T-07 Excavator suffers critical hit (Meltdown). 01737_ Wheel melted. 01766_ R-06 Scavenger sends out distress signal. 01802_ ALERT: Infestation in the mines, dispatching Demolisher response squad. 01810_ Y-45 Defender destroyed. 01819_ Acquired Imp. Ion Engine. 01824_ Acquired 10 matter. 01835_ Released Imp. Ion Engine. 01835_ Released Imp. Heat Sink. 01835_ Released Huge Storage Unit. 01835_ Released Lgt. Treads. 01835_ Released Adv. Beam Cannon. 01835_ Released Lgt. Treads. 01973_ Acquired 7 matter. 01973_ Extracted 3 matter. 02005_ S-10 Pest destroyed. Map ----- +----------------------------------------------------+ | ???##### #?????????? | | ??## ############ #?????????? | | ??# #?????????# ##????????? | | ??# #????????## #????????? | | ??# ##???????## #????????? | | ??# #????????# #????????? | | ??# #????????# ##???????? | | ??# ##???????## ##??????? | | ??## #????????## #??????? | | ???## #???######## =#??????? | | ???## #??## ####[!#??????? | | ??## #??# #?#=%##?????# | | ??# ##??# """ #?##!!##??? # | | ??# ##?## """ #???#%!!##? # | | ??# ### """ #???##*!]## # | | ??# #????#!]/= # | | ?## #????#=![]#### | | ?# ## #????##] ##??? | | ?# #### ##?????## #???? | | ?## ##??## ##????#### #???? | | ??# ##????####?????# #???? | | ??# #??????????????# ####???? | | ??# ##?????????????# #??????? | | ??# #?????????????# #??????? | | ??# #???????????### #??????? | | ??# @#???????????# #??????? | | ??##[*#???????????# ###??????? | | ???##s############# ##???????? | | ????#= = =%! #### #??? | | ????# = ! % #??? | | ????######### = #####??? | | ????????????# ##??????? | | ????????????# ######???????? | | ????????????#####????????????? | | ?????????????????????????????? | | ?????????????????????????????? | | ?????????????????????????????? | | ?????????????????????????????? | | ?????????????????????????????? | | ?????????????????????????????? | | | | | | | | | | | | | | | | | | | | | +----------------------------------------------------+ Best States ------------- Heat Dissipation 39 Energy Generation 12 Energy Capacity 265 Matter Stores 300 Matter Capacity 300 Sight Range 16 Terrain Scan Density 10 Armor Coverage 150 Evasion (%) 55 Recoil Reduction 2 Item Schematics ----------------- None Robot Schematics ------------------ None Fabricated ------------ Nothing Repaired ---------- Nothing Studied --------- None Alien Tech Used ----------------- None Achievements -------------- None Challenges ------------ None Game ------ Seed RemoteCoilTrident Manual? 0 Play Time 00:12:27 Cumulative 273.7 hours Start 2026.01.06 @ 21:51:20 End 2026.01.06 @ 22:01:28 Sessions 1 Manual Loads 0 Difficulty Rogue Special Mode None Game No. 352 Rogue 351 Adventurer 1 Explorer 0 Win Type - Total 2 Types 1/0/0/1/0/0/0/0/0/0 Lore% 74 Gallery% 67 Achievement% 56 Wizard Run 0 Options --------- Layout 0 ASCII 0 Keyboard 0 Movement Numpad Keybinds 0 Fullscreen 1 Font 24/Smallcaps Map View 76x50 Zoom Use 0% Tactical HUD 1 Map Filters NONE Filters NONE Steam 1 RUN: 46d5848d-ab15-4a96-b575-38887c1381ad